Cogmind - Beta 13 @@@ ROGUE MODE // 2024.06.17 @ 10:29:31 Player: Hazmat Result: Destroyed by Y-45 Defender with Beam Rifle Performance ------------- Evolutions (1) 500 Regions Visited (2) 400 Robots Destroyed (28) 140 Value Destroyed (563) 563 Prototype IDs (0) 0 Alien Tech Used (0) 0 Bonus (0) 0 TOTAL SCORE: 1603 Bonus ------- None Cogmind --------- Core Integrity 0/400 Matter 300/300 Energy 150/265 System Corruption 0% Temperature Cool (9) Movement Treading (160) Location -9/Materials Parts ------- > --- POWER (1) -------- Improved Ion Engine > --- PROPULSION (4) --- Light Treads > --- UTILITY (2) ------ Improved Targeting Computer Hacking Suite > --- WEAPON (2) ------- (None) > --- INVENTORY (5) ---- Improved Ion Engine Datajack Peak State ------------ > --- POWER ------------ Improved Ion Engine > --- PROPULSION ------- Improved Treads Improved Treads Improved Treads Improved Treads > --- UTILITY ---------- Improved Terrain Scanner Hacking Suite > --- WEAPON ----------- Small Laser Particle Gun > --- INVENTORY -------- Improved Ion Engine Improved Ion Engine Datajack [Rating: 19] Favorites ----------- Power Ion Engine Engine Ion Engine Propulsion Aluminum Leg Treads Improved Treads Leg Aluminum Leg Utility Improved Terrain Scanner Device Improved Terrain Scanner Storage Small Storage Unit Processor Improved Targeting Computer Hackware Hacking Suite Weapon Small Laser Energy Gun Small Laser Energy Cannon Light EM Pulse Cannon Ballistic Gun Assault Rifle Special Melee Weapon Datajack Build | -11 -10 -9 ------- Run | Yrd Mat Mat Slots Evolved 2 | . . 2 Power . | . . . Propulsion 2 | . . 2 Utility . | . . . Weapon . | . . . Parts Attached 30 | 9 14 7 Power 5 | 1 2 2 Engine 5 | 1 2 2 Core . | . . . Reactor . | . . . Propulsion 11 | 2 6 3 Treads 5 | . 2 3 Leg 6 | 2 4 . Wheel . | . . . Hover . | . . . Flight . | . . . Utility 5 | 3 1 1 Device 2 | 2 . . Storage 1 | 1 . . Processor 1 | . . 1 Hackware 1 | . 1 . Protection . | . . . Artifact . | . . . Weapon 9 | 3 5 1 Energy Gun 5 | 2 3 . Energy Cannon 1 | . . 1 Ballistic Gun 2 | 1 1 . Ballistic Cannon . | . . . Launcher . | . . . Special Weapon . | . . . Impact Weapon . | . . . Slashing Weapon . | . . . Piercing Weapon . | . . . Special Melee Weapon 1 | . 1 . Unidentified Prototypes . | . . . Parts Lost 14 | . 5 9 Power 1 | . . 1 Propulsion 6 | . 2 4 Utility 1 | . . 1 Weapon 6 | . 3 3 Highest Loss Streak 8 | . 2 8 To Critical Strikes 1 | . . 1 Average Slot Usage (%) 86 | . 97 49 Engine 12 | . 14 8 Treads 9 | . 6 17 Leg 15 | . 20 . Device 14 | . 17 2 Hackware 10 | . 10 11 Energy Gun 19 | . 22 6 Ballistic Gun 1 | . 2 . Special Melee Weapon 1 | . 1 . Naked Turns . | . . . Heaviest Build 15 | 15 12 12 Greatest Support 92 | 20 46 92 Greatest Overweight (x) 3 | . . 3 Average Overweight (x) . | . . . Largest Inventory Capacity 8 | 8 5 5 Average Capacity 5 | 6 5 5 Most Carried 6 | 6 5 4 Average Carried 4 | 4 4 2 Final Capacity 5 | 5 5 5 Final Carried 5 | 5 5 2 Class Distribution -------------------- 58% | Mutant 41% | Scavenger-Mutant Dominant Class ---------------- Scavenger-Mutant | -10/Materials Mutant | -9/Materials Resources | -11 -10 -9 ----------- Run | Yrd Mat Mat Matter Collected 593 | 344 192 57 Remotely . | . . . Salvage Created 876 | 239 551 86 Parts 47 | 14 29 4 Haulers Intercepted 1 | . 1 . Recyclers Shooed 1 | . 1 . Parts Field Recycled . | . . . Retrieved Matter . | . . . Parts Self-Destructed . | . . . Prevented . | . . . Kills | -11 -10 -9 ------- Run | Yrd Mat Mat Combat Hostiles Destroyed 17 | . 12 5 Melee 2 | . . 2 Guns 13 | . 11 2 Cannons 1 | . . 1 AOE 1 | . 1 . Classes Destroyed 8 | 3 5 . Worker 1 | 1 . . Tunneler 5 | 5 . . Hauler 1 | . 1 . Recycler 1 | 1 . . Operator 2 | . 2 . Watcher 1 | . 1 . Swarmer 5 | . 3 2 Grunt 12 | . 9 3 Best Kill Streak 5 | 2 5 3 Combat Bots Only 5 | . 5 3 Max Kills in Single Turn 2 | 1 2 1 Gunslinging 1 | . 1 . Exploded 1 | . 1 . Melee 1 | . . 1 Uniques/NPCs Destroyed . | . . . Combat | -11 -10 -9 -------- Run | Yrd Mat Mat Hostile Shots Fired 242 | . 88 154 Missed 69 | . 22 47 Damage Taken 2148 | 36 745 1367 Core 498 | . 98 400 Absorbed by Shields . | . . . Regen/Repaired (Parts) 93 | . 93 . Core Remaining (%) 80 | 100 60 . Volleys Fired 106 | 29 64 13 Largest 2 | 2 2 2 Hottest 105 | 60 105 105 Shots Fired 171 | 47 104 20 Gun 165 | 47 104 14 Cannon 6 | . . 6 Launcher . | . . . Special . | . . . Kinetic 37 | 18 19 . Thermal 87 | . 73 14 Explosive . | . . . Electromagnetic 47 | 29 12 6 Robot Hit Streak 11 | 4 11 4 Robot Miss Streak 4 | 2 4 4 Penetration Max . | . . . Secondary Targets 4 | . 4 . Max Gunslinging Chain 1 | . 1 . Shots Hit Robots 105 | 24 69 12 Core Hits 51 | 8 27 16 Critical Kills . | . . . Critical Parts Destroyed . | . . . Critical Strikes . | . . . Melee Attacks 1 | . 1 . Impact . | . . . Slashing . | . . . Piercing . | . . . Sneak Attacks 1 | . 1 . Combat Hostiles . | . . . Follow-up Attacks . | . . . Damage Inflicted 1599 | 413 969 217 Guns 1295 | 360 840 95 Cannons 95 | . . 95 Explosions 171 | 53 118 . Melee . | . . . Ramming 38 | . 11 27 Kinetic 347 | 150 197 . Thermal 797 | 53 649 95 Explosive . | . . . Electromagnetic 417 | 210 112 95 Impact . | . . . Slashing . | . . . Piercing . | . . . Highest Corruption . | . . . Average Corruption . | . . . Corruption Purged . | . . . Corruption Blocked . | . . . Overload Shots . | . . . Overflow Damage . | . . . Projectiles . | . . . Explosions . | . . . Melee . | . . . Knockbacks . | . . . Impact . | . . . Kinetic . | . . . Secondary . | . . . Self-Inflicted Damage 66 | 36 29 1 Shots 3 | 1 2 . Rammed 20 | . . 20 Targets Rammed 24 | . 2 22 Kicked 2 | . 2 . Crushed 2 | . . 2 Highest Temperature 332 | 12 241 332 Average Temperature 96 | 12 96 110 Received Heat Transfer 909 | . 357 552 Siege Activations . | . . . Robots Corrupted . | . . . Combat Hostiles . | . . . Parts Fried . | . . . Impact Corruptions . | . . . Robots Melted . | . . . Combat Hostiles . | . . . Parts Melted 6 | . 4 2 Heat Transferred 1594 | 50 1321 223 Parts Sabotaged . | . . . Parts Stolen . | . . . Parts Stripped . | . . . Power Chain Reactions 4 | 2 2 . Alert | -11 -10 -9 ------- Run | Yrd Mat Mat Peak Influence 308 | 20 308 173 Initial 78 | . 9 78 Average 89 | 8 158 111 Maximum Alert Level 1 | . 1 . Low Security (%) 94 | 100 87 100 Level 1 5 | . 12 . Level 2 . | . . . Level 3 . | . . . Level 4 . | . . . Level 5 . | . . . High Security . | . . . Max Security . | . . . Squads Dispatched 4 | . 3 1 Investigation 2 | . 2 . Extermination . | . . . Reinforcement 2 | . 1 1 Assault . | . . . Garrison . | . . . Intercept . | . . . Searches Triggered . | . . . Construction Impeded . | . . . Haulers Reinforced . | . . . Active Scanning Responses . | . . . Cargo Convoy Interrupts . | . . . Stealth | -11 -10 -9 --------- Run | Yrd Mat Mat Distress Signals 1 | . . 1 Communications Jammed . | . . . Distress Signals . | . . . Times Spotted 33 | . 17 16 Peak Tracking Total 10 | . 5 10 Tactical Retreats 2 | . 1 1 Traps | -11 -10 -9 ------- Run | Yrd Mat Mat Traps Triggered 1 | . 1 . Indirectly . | . . . Trap Hack Attempts . | . . . Triggered . | . . . Disarmed . | . . . Reprogrammed . | . . . Reused . | . . . Traps Extracted . | . . . Installed . | . . . Triggered . | . . . Machines | -11 -10 -9 ---------- Run | Yrd Mat Mat Machines Disabled . | . . . Max in Single Turn . | . . . Machines Repaired . | . . . Machines Dismantled . | . . . Machines Sabotaged . | . . . Overloaded Fab Kills . | . . . Hacking | -11 -10 -9 --------- Run | Yrd Mat Mat Machines Accessed 3 | . 3 . Terminals 2 | . 2 . Fabricators . | . . . Repair Stations 1 | . 1 . Recycling Units . | . . . Scanalyzers . | . . . Garrison Access . | . . . Total Hacks 9 | . 9 . Successful 6 | . 6 . Failed 3 | . 3 . Catastrophic 1 | . 1 . Database Lockouts . | . . . Manual 2 | . 2 . Terminals 5 | . 5 . Fabricators . | . . . Repair Stations 4 | . 4 . Recycling Units . | . . . Scanalyzers . | . . . Garrison Access . | . . . Terminal Hacks 2 | . 2 . Locate Traps 1 | . 1 . Registered Components 1 | . 1 . Fabricator Hacks . | . . . Repair Station Hacks 4 | . 4 . Scan Component 2 | . 2 . Repair 2 | . 2 . Recycling Unit Hacks . | . . . Scanalyzer . | . . . Garrison Access Hacks . | . . . Unauthorized Hacks . | . . . Terminals . | . . . Fabricators . | . . . Repair Stations . | . . . Recycling Units . | . . . Scanalyzers . | . . . Garrison Access . | . . . Data Cores Recovered 1 | . 1 . Used . | . . . Hacking Detections 3 | . 3 . Full Trace Events 2 | . 2 . Feedback Events . | . . . Feedback Blocked . | . . . Robot Schematics Acquired . | . . . Robots Built . | . . . Authchips . | . . . Time . | . . . Total Robot Build Rating . | . . . Part Schematics Acquired . | . . . Parts Built . | . . . Authchips . | . . . Time . | . . . Total Part Build Rating . | . . . Parts Repaired 2 | . 2 . Time 52 | . 52 . Parts Recycled . | . . . Recycled Matter . | . . . Retrieved Matter . | . . . Retrieved Components . | . . . Parts Scanalyzed . | . . . Part Schematics Acquired . | . . . Parts Damaged . | . . . Bothacking | -11 -10 -9 ------------ Run | Yrd Mat Mat Used RIF Installer . | . . . Robots Hacked 1 | . 1 . Non-combat 1 | . 1 . Combat . | . . . Robot Hacks Applied 1 | . 1 . find_recycling 1 | . 1 . Relay Couplers Released . | . . . Fabnet Peak Effective % . | . . . Robots Rewired . | . . . Allies Hacked . | . . . Hacks Repelled . | . . . Allies | -11 -10 -9 -------- Run | Yrd Mat Mat Total Allies . | . . . Largest Group . | . . . Highest-Rated Group . | . . . Highest-Rated Ally . | . . . Total Orders . | . . . Ally Attacks . | . . . Total Damage . | . . . Kills . | . . . Allies Corrupted . | . . . Allies Melted . | . . . Intel | -11 -10 -9 ------- Run | Yrd Mat Mat Robot Analysis Total . | . . . Derelict Logs Recovered . | . . . Drone Launches . | . . . Drone Recoveries . | . . . Exploration | -11 -10 -9 ------------- Run | Yrd Mat Mat Turns Passed 1769 | 741 793 235 Spaces Moved 855 | 347 359 149 Core 132 | 16 . 116 Treads 144 | . 111 33 Legs 579 | 331 248 . Wheels . | . . . Hover . | . . . Flight . | . . . Fastest Speed 50 | 50 120 50 Average Speed 121 | 116 132 105 Slowest Speed 200 | 120 160 200 Overloaded Moves . | . . . Propulsion Burnouts . | . . . Robots Hopped . | . . . Cave-ins Triggered . | . . . Exploration Rate (%) 31 | 23 54 17 Regions Visited 2 Branch Regions . Pre-discovered Areas . | . . . Known Exits Taken . | . . . Unknown Exits Taken 2 | 1 1 . Scrap Searched . | . . . Spaces Dug . | . . . Terrain Destroyed 14 | 7 7 . Melee . | . . . Projectile . | . . . AOE 14 | 7 7 . Terrain Rammed . | . . . Walls Destroyed . | . . . Machines Disabled . | . . . Actions | -11 -10 -9 --------- Run | Yrd Mat Mat Total 1409 | 637 577 195 Wait 351 | 237 114 . Move 853 | 346 358 149 Hop . | . . . Pick Up 26 | 13 10 3 Fast Attach 8 | 1 7 . Attach 18 | 8 3 7 Detach 2 | 1 . 1 Swap 4 | . 4 . Drop 16 | 2 14 . Fire 106 | 29 64 13 Melee 1 | . 1 . Ram 3 | . . 3 Kick 2 | . 2 . Crush 19 | . . 19 Escape Stasis . | . . . Rewire . | . . . Trap . | . . . Miscellaneous . | . . . Route ------- -11/Scrapyard -10/Materials -9/Materials History --------- Turn | Location | Event 11 | -11/Scrapyard | Discovered new exit (range 16) 742 | -11/Scrapyard | Entered Materials 743 | -10/Materials | Build established: Mutant 1175 | -10/Materials | Build established: Scavenger-Mutant 1295 | -10/Materials | Repaired Aluminum Leg 1323 | -10/Materials | Repaired Aluminum Leg 1486 | -10/Materials | Discovered new exit (range 15) 1535 | -10/Materials | Entered another Materials area 1535 | -9/Materials | Evolved 2 slots: Propulsion x2 1669 | -9/Materials | Lost 8 parts (1p4n1u2w) 1681 | -9/Materials | Core integrity fell below 50% 1743 | -9/Materials | Core integrity fell below 20% 1770 | -9/Materials | Destroyed by Y-45 Defender with Beam Rifle Last Messages --------------- Acquired 6 matter. Imp. Treads destroyed. Slammed into Y-45 Defender. Imp. Treads destroyed. U-05 Engineer builds a Door. Slammed into Y-45 Defender. Critical hit (Burn: +37). W-16 Scout sends out distress signal. Slammed into W-16 Scout. Critical hit (Burn: +37). K-01 Serf cleans the Electrolysis Chamber. Acquired Lgt. EM Pulse Cannon. Acquired Imp. Targeting Computer. G-34 Mercenary destroyed. Lgt. EM Pulse Cannon destroyed. Y-45 Defender destroyed. Acquired Lgt. Treads. Slammed into G-34 Mercenary. Acquired 32 matter. Slammed into G-34 Mercenary. Map ----- +----------------------------------------------------+ | | | | | | | | | ?????????????????????????????????????????????????? | | ?????????????????????????????????????????????????? | | ??????????#??#???????????????????????????????????? | | ????#????????????????????????????????????????????? | | ?????????????????????#???????????????????????????? | | ????????#???????????????????? ??????????????????? | | ????????????????????????????? ??????????????????? | | ????????????????????????????? ??????????????????? | | ?????????#####??????????????? ??????????????????? | | ??????#??# #??????????????? ??????????????????? | | ????#????# #??????????????? ??????????????????? | | ####?????# #????????????###+##?????????????????? | | ####### ############## ##+#??????????????? | | % ???????????????? | | % ???????????????? | | ############## ##+##+##??????????? | | ####### ############### ## #??????????? | | ## ## ## !!! # ##! #??????????? | | ## ## ## !!! Y ## !!] #??????????? | | ## ## ## !!=Y# ## !]] #??????????? | | ## ## ## *![%+ + ] #??????????? | | ## ## ## %@g# ### #??????????? | | ## ## ############### #?##/#####??????????? | | ## %%%## ###???????????# #??# #??????????????? | | ###+### #???????????# #??# #??????????????? | | % %%%%% #???????????# #?? ??????????????? | | T %%%% #???????????# #?? ??????????????? | | *! #???????????# #? ?????????????? | | ###+### #???????????# #? ?????????????? | | ####? ## ############## #? ?????????????? | | ????? " ## # # ####+###????????????? | | ????# T ## # """ """ # #??? ???????????????? | | ????# " ## + """ """ ! # #??? ???????????????? | | ????# ## # """ """ # #??? ???????????????? | | ????# ## # # #??? ???????????????? | | ????# + #######+######+#??? ???????????????? | | ????########+##?????# ### #???????????????????? | | ????????????????????# + #???????????????????? | | ????????????????????# # #???????????????????? | | ????????????????????# + #???????????????????? | | ????????????????????# # #???????????????????? | | ????????????????????# # #???????????????????? | | ????????????????????# # #???????????????????? | | ????????????????????# # #???????????????????? | | ????????????????????# # #???????????????????? | | ????????????????????# ######???????????????????? | +----------------------------------------------------+ Best States ------------- Heat Dissipation 28 Energy Generation 12 Energy Capacity 265 Matter Stores 300 Matter Capacity 300 Sight Range 16 Terrain Scan Range 16 Terrain Scan Density 10 Evasion (%) 55 Targeting Accuracy 6 Recoil Reduction 4 Offensive Hacking 10 Item Schematics ----------------- None Robot Schematics ------------------ None Fabricated ------------ Nothing Alien Tech Used ----------------- None Achievements -------------- None Challenges ------------ None Game ------ Seed RainbowChargeBoomstick Manual? 0 Play Time 00:21:27 Cumulative 8.6 hours Start 2024.06.17 @ 10:07:26 End 2024.06.17 @ 10:29:31 Sessions 1 Manual Loads 0 Difficulty Rogue Special Mode None Game No. 12 Rogue 12 Adventurer 0 Explorer 0 Win Type - Total 0 Types 0/0/0/0/0/0/0/0/0 Lore% 6 Gallery% 13 Achievement% 16 Wizard Run 0 Options --------- Layout 1 ASCII 0 Keyboard 0 Movement Mouse Keybinds 0 Fullscreen 1 Font 32/SmallcapsGlow Map View 50x40 Zoom Use 0% Tactical HUD 0 Map Filters NONE Filters NONE Steam 1 RUN: eb6aa3a9-88e0-4ba8-9b25-4fff4ffb7af0